Workbook

Sheet прил 3
K3: Приложение 3 к Национальному стандарту бухгалтерского учета и отчетности «Индивидуальная бухгалтерская отчетность» 12.12.2016 № 104 Форма
C4: ОТЧЕТ об изменении собственного капитала
D5: за | E5: январь | G5: - | H5: декабрь | J5: 2022 г.
C7: Организация | F7: ОАО "Универмаг "Ценральный"
C8: Учетный номер плательщика | F8: 700002659
C9: Вид экономической деятельности | F9: Розничная торговля
C10: Организационно-правовая форма | F10: Открытое акционерное общество
C11: Орган управления | F11: Управление торговли и услуг Могилевского горисполкома
C12: Единица измерения | F12: тыс. руб.
C13: Адрес | F13: 212030 г. Могилев , ул. Первомайская, 61
C15: Наименование показателей | D15: Код стро-ки | E15: Устав-ный капитал | G15: Неопла- ченная часть устав-ного капитала | I15: Собст-венные акции (доли в уставном капитале) | K15: Резерв- ный капитал | M15: Доба-вочный капитал | O15: Нераспре- деленная прибыль (непок-рытый убыток) | Q15: Чистая прибыль (убыток) | S15: Итого
C16: 1 | D16: 2 | E16: 3 | G16: 4 | I16: 5 | K16: 6 | M16: 7 | O16: 8 | Q16: 9 | S16: 10
C17: Остаток на 31.12.2020 г. | D17: 010 | E17: 408 | G17: 0 | I17: 0 | K17: 25 | M17: 2179 | O17: 3591 | Q17: 0 | S17: =SUM(E17,K17:R17)-G17-I17 -> 6203 | W17: 80, 75 (75-1), 81, 82, 83, 84
C18: Корректировки в связи с изменением учетной политики | D18: 020 | E18: 0 | G18: 0 | I18: 0 | K18: 0 | M18: 0 | O18: 0 | Q18: 0 | S18: =SUM(E18:R18) -> 0
C19: Корректировки в связи с исправлением ошибок | D19: 030 | E19: 0 | G19: 0 | I19: 0 | K19: 0 | M19: 0 | Q19: 0 | S19: =SUM(E19:R19) -> 0
C20: Скорректированный остаток на 31.12.2020 г. | D20: 040 | E20: =E17+E18+E19 -> 408 | G20: =G17+G18+G19 -> 0 | I20: =I17+I18+I19 -> 0 | K20: =K17+K18+K19 -> 25 | M20: =M17+M18+M19 -> 2179 | O20: =O17+O18+O19 -> 3591 | Q20: =Q17+Q18+Q19 -> 0 | S20: =SUM(E20,K20:R20)-G20-I20 -> 6203 | W20: 80, 75 (75-1), 81, 82, 83, 84 | Z20: =3591+305-165 -> 3731
C21: =CONCATENATE("За ",E5," ",G5," ",H5," ",YEAR(J5)-1," г.") -> 
C22: Увеличение собственного капитала - всего | D22: 050 | E22: =SUM(E24:F32) -> 0 | G22: =SUM(G24:H32) -> 0 | I22: =SUM(I24:J32) -> 0 | K22: =SUM(K24:L32) -> 0 | M22: =SUM(M24:N32) -> 0 | O22: =SUM(O24:P32) -> 305 | Q22: =SUM(Q24:R32) -> 0 | S22: =SUM(S24:T32) -> 305
C23: в том числе:
C24: чистая прибыль | D24: 051 | E24: 0 | G24: 0 | I24: 0 | K24: 0 | M24: 0 | O24: 305 | S24: =SUM(E24:R24) -> 305
C25: переоценка долгосрочных активов | D25: 052 | E25: 0 | G25: 0 | I25: 0 | K25: 0 | M25: 0 | O25: 0 | Q25: 0 | S25: =SUM(E25:R25) -> 0
C26: доходы от прочих операций, не включаемые в чистую прибыль (убыток) | D26: 053 | E26: 0 | G26: 0 | I26: 0 | K26: 0 | M26: 0 | O26: 0 | Q26: 0 | S26: =SUM(E26:R26) -> 0
C27: выпуск дополнительных акций | D27: 054 | E27: 0 | G27: 0 | I27: 0 | K27: 0 | M27: 0 | O27: 0 | Q27: 0 | S27: 0
C28: увеличение номинальной стоимости акций | D28: 055 | E28: 0 | G28: 0 | I28: 0 | K28: 0 | M28: 0 | O28: 0 | Q28: 0 | S28: 0
C29: вклады собственника имущества (учредителей, участников) | D29: 056 | E29: 0 | G29: 0 | I29: 0 | K29: 0 | M29: 0 | O29: 0 | Q29: 0 | S29: 0
C30: реорганизация | D30: 057 | E30: 0 | G30: 0 | I30: 0 | K30: 0 | M30: 0 | O30: 0 | Q30: 0 | S30: 0
C31: Фонд накопления | D31: 058 | E31: 0 | G31: 0 | I31: 0 | K31: 0 | M31: 0 | Q31: 0 | S31: 0 | W31: =IF(SUM(X36:X37)=SUM(Z36:Z37)," ","ВНИМАНИЕ: проверять правильность выполнения условий необходимо только после полного заполнения формы.") -> 
D32: 059 | E32: 0 | G32: 0 | I32: 0 | K32: 0 | M32: 0 | O32: 0 | Q32: 0 | S32: 0
C33: Уменьшение собственного капитала - всего | D33: 060 | E33: =SUM(E35:F43) -> 0 | G33: =SUM(G35:H43) -> 0 | I33: =SUM(I35:J43) -> 0 | K33: =SUM(K35:L43) -> 0 | M33: =SUM(M35:N43) -> 2 | O33: =SUM(O35:P43) -> 176 | Q33: =SUM(Q35:R43) -> 0 | S33: =SUM(E33:R33) -> 178 | W33: =IF(SUM(X36:X37)=SUM(Z36:Z37)," ","Если ячейки окрасились в желтый цвет, это означает, что данные Отчета об изменении капитала не равны данным Отчета о прибылях и убытках.") -> 
C34: в том числе:
C35: убыток | D35: 061 | E35: 0 | G35: 0 | I35: 0 | K35: 0 | M35: 0 | O35: - | Q35: 0 | S35: =SUM(E35:R35) -> 0
C36: переоценка долгосрочных активов | D36: 062 | E36: 0 | G36: 0 | I36: 0 | K36: 0 | M36: 0 | O36: 0 | Q36: 0 | S36: =SUM(E36:R36) -> 0 | W36: стр.220 гр.4 | X36: =#REF! ->  | Y36: ≠ | Z36: =M25-M36 -> 0 | AA36: стр.052 гр.7 - стр.062 гр.7
C37: расходы от прочих операций, не включаемые в чистую прибыль (убыток) | D37: 063 | E37: 0 | G37: 0 | I37: 0 | K37: 0 | S37: =SUM(E37:R37) -> 0 | W37: стр.230 гр.4 | X37: =#REF! ->  | Y37: ≠ | Z37: =S26-S37 -> 0 | AA37: стр.053 гр.10 - стр.063 гр.10
C38: уменьшение номинальной стоимости акций | D38: 064 | E38: 0 | G38: 0 | I38: 0 | K38: 0 | M38: 0 | O38: 0 | Q38: 0 | S38: 0
C39: выкуп акций (долей в уставном капитале) | D39: 065 | E39: 0 | G39: 0 | I39: 0 | K39: 0 | M39: 0 | O39: 0 | Q39: 0 | S39: 0
C40: дивиденды и другие доходы от участия в уставном капитале организации | D40: 066 | E40: 0 | G40: 0 | I40: 0 | K40: 0 | M40: 0 | O40: 158 | Q40: 0 | S40: 158
C41: реорганизация | D41: 067 | E41: 0 | G41: 0 | I41: 0 | K41: 0 | M41: 0 | O41: 0 | Q41: 0 | S41: 0
C42: прочие | D42: 068 | E42: 0 | G42: 0 | I42: 0 | K42: 0 | M42: 2 | O42: 18 | Q42: 0 | S42: 20 | W42: =IF(SUM(AD47:AD53)=SUM(E51:P51)," ","ВНИМАНИЕ: проверять правильность выполнения условий необходимо только после полного заполнения формы.") -> 
D43: 069 | E43: 0 | G43: 0 | I43: 0 | K43: 0 | M43: 0 | O43: 0 | Q43: 0 | S43: 0
C44: Изменение уставного капитала | D44: 070 | E44: 0 | G44: 0 | I44: 0 | K44: 0 | M44: 0 | O44: 0 | Q44: 0 | S44: 0 | W44: =IF(SUM(AD47:AD53)=SUM(E51:P51)," ","Если ячейки окрасились в желтый цвет, это означает, что данные Отчета об изменении капитала не равны данным Бухгалтерского баланса.") -> 
C45: Изменение резервного капитала | D45: 080 | E45: 0 | G45: 0 | I45: 0 | K45: - | M45: - | O45: - | Q45: 0 | S45: 0
C46: Изменение добавочного капитала | D46: 090 | E46: 0 | G46: 0 | I46: 0 | K46: 0 | M46: - | O46: - | Q46: 0 | S46: 0
C47: Остаток на 31.12.2021 г. | D47: 100 | E47: =E20+E22-E33+E44+E45+E46 -> 408 | G47: =G20+G22-G33+G44+G45+G46 -> 0 | I47: =I20+I22-I33+I44+I45+I46 -> 0 | K47: =K20 -> 25 | M47: =M20-M33 -> 2177 | O47: =O20+O22-O33 -> 3720 | Q47: =Q20+Q22-Q33+Q44+Q45+Q46 -> 0 | S47: =SUM(E47,K47:R47)-G47-I47 -> 6330 | W47: =IF(E51=AD47," ",IF(E51<AD47,CONCATENATE("Данные стр.110-130 гр.3 превышают на ",AC47," данные в стр.140 гр.3. Необходимо проверить заполнение строк 110-130."),CONCATENATE("Данные стр.110-130 гр.3 меньше на ",AC47," данных в стр.140 гр.3. Необходимо проверить заполнение строк 110-130."))) ->  | AC47: =ABS(E51-AD47) -> 0 | AD47: =E48+E49+E50 -> 408
C48: Остаток на 31.12.2021 г. | D48: 110 | E48: 408 | G48: 0 | I48: 0 | K48: 25 | M48: 2177 | O48: 3720 | Q48: 0 | S48: =SUM(E48,K48:R48)-G48-I48 -> 6330
C49: Корректировки в связи с изменением учетной политики | D49: 120 | E49: 0 | G49: 0 | I49: 0 | K49: - | M49: - | O49: 0 | Q49: 0 | S49: 0 | W49: =IF(G51=AD49," ",IF(G51<AD49,CONCATENATE("Данные стр.110-130 гр.4 превышают на ",AC49," данные в стр.140 гр.4. Необходимо проверить заполнение строк 110-130."),CONCATENATE("Данные стр.110-130 гр.4 меньше на ",AC49," данных в стр.140 гр.4. Необходимо проверить заполнение строк 110-130."))) ->  | AC49: =ABS(G51-AD49) ->  | AD49: =G48+G49+G50 -> 0
C50: Корректировки в связи с исправлением ошибок | D50: 130 | E50: 0 | G50: 0 | I50: 0 | Q50: 0 | S50: 0 | W50: =IF(I51=AD50," ",IF(I51<AD50,CONCATENATE("Данные стр.110-130 гр.5 превышают на ",AC50," данные в стр.140 гр.5. Необходимо проверить заполнение строк 110-130."),CONCATENATE("Данные стр.110-130 гр.5 меньше на ",AC50," данных в стр.140 гр.5. Необходимо проверить заполнение строк 110-130."))) ->  | AC50: =ABS(I51-AD50) ->  | AD50: =I48+I49+I50 -> 0
C51: Скорректированный остаток на 31.12.2021 г. на | D51: 140 | E51: 408 | G51: - | I51: - | K51: 25 | M51: 2177 | O51: 3720 | Q51: =Q48+Q49+Q50 -> 0 | S51: 6330 | W51: =IF(K51=AD51," ",IF(K51<AD51,CONCATENATE("Данные стр.110-130 гр.6 превышают на ",AC51," данные в стр.140 гр.6. Необходимо проверить заполнение строк 110-130."),CONCATENATE("Данные стр.110-130 гр.6 меньше на ",AC51," данных в стр.140 гр.6. Необходимо проверить заполнение строк 110-130."))) ->  | AC51: =ABS(K51-AD51) ->  | AD51: =K48+K49+K50 -> 
C52: Увеличение собственного капитала - всего | D52: 150 | E52: =SUM(E54:F62) -> 0 | G52: =SUM(G54:H62) -> 0 | I52: =SUM(I54:J62) -> 0 | K52: =SUM(K54:L62) -> 0 | M52: =SUM(M54:N62) -> 2792 | O52: =O54 -> 592 | Q52: =SUM(Q54:R62) -> 0 | S52: =SUM(E52:R52) -> 3384 | AC52: =ABS(M51-AD52) ->  | AD52: =M48+M49+M50 -> 
C53: в том числе: | W53: =IF(O51=AD53," ",IF(O51<AD53,CONCATENATE("Данные стр.110-130 гр.8 превышают на ",AC53," данные в стр.140 гр.8. Необходимо проверить заполнение строк 110-130."),CONCATENATE("Данные стр.110-130 гр.8 меньше на ",AC53," данных в стр.140 гр.8. Необходимо проверить заполнение строк 110-130."))) ->  | AC53: =ABS(O51-AD53) -> 0 | AD53: =O48+O49+O50 -> 3720
C54: чистая прибыль | D54: 151 | E54: 0 | G54: 0 | I54: 0 | K54: 0 | M54: 0 | O54: 592 | Q54: 0 | S54: =SUM(E54:R54) -> 592
C55: переоценка долгосрочных активов | D55: 152 | E55: 0 | G55: 0 | I55: 0 | K55: 0 | M55: 2792 | O55: 0 | Q55: 0 | S55: =SUM(E55:R55) -> 2792
C56: доходы от прочих операций, не включаемые в чистую прибыль (убыток) | D56: 153 | E56: 0 | G56: 0 | I56: 0 | K56: 0 | M56: 0 | O56: 0 | Q56: 0 | S56: =SUM(E56:R56) -> 0
C57: выпуск дополнительных акций | D57: 154 | E57: 0 | G57: 0 | I57: 0 | K57: 0 | M57: 0 | O57: 0 | Q57: 0 | S57: =SUM(E57:R57) -> 0
C58: увеличение номинальной стоимости акций | D58: 155 | E58: 0 | G58: 0 | I58: 0 | K58: 0 | M58: 0 | O58: 0 | Q58: 0 | S58: 0
C59: вклады собственника имущества (учредителей, участников) | D59: 156 | E59: 0 | G59: 0 | I59: 0 | K59: 0 | M59: 0 | O59: 0 | Q59: 0 | S59: 0
C60: реорганизация | D60: 157 | E60: 0 | G60: 0 | I60: 0 | K60: 0 | M60: 0 | O60: 0 | Q60: 0 | S60: 0
D61: 158 | E61: 0 | G61: 0 | I61: 0 | K61: 0 | M61: 0 | O61: - | Q61: 0 | S61: 0 | W61: =IF(SUM(X66:X67)=SUM(Z66:Z67)," ","ВНИМАНИЕ: проверять правильность выполнения условий необходимо только после полного заполнения формы.") -> 
D62: 159 | E62: 0 | G62: 0 | I62: 0 | K62: 0 | M62: 0 | O62: 0 | Q62: 0 | S62: 0
C63: Уменьшение собственного капитала - всего | D63: 160 | E63: =SUM(E65:F73) -> 0 | G63: =SUM(G65:H73) -> 0 | I63: =SUM(I65:J73) -> 0 | K63: =SUM(K65:L73) -> 0 | M63: =SUM(M65:N73) -> 0 | O63: =SUM(O65:P73) -> 152 | Q63: =SUM(Q65:R73) -> 0 | S63: 152 | W63: =IF(SUM(X66:X67)=SUM(Z66:Z67)," ","Если ячейки окрасились в серый цвет, это означает, что данные Отчета об изменении капитала не равны данным Отчета о прибылях и убытках.") -> 
C64: в том числе:
C65: убыток | D65: 161 | E65: 0 | G65: 0 | I65: 0 | K65: 0 | M65: 0 | O65: - | Q65: 0 | S65: =SUM(E65:R65) -> 0
C66: переоценка долгосрочных активов | D66: 162 | E66: 0 | G66: 0 | I66: 0 | K66: 0 | M66: 0 | O66: 0 | Q66: 0 | S66: =SUM(E66:R66) -> 0 | W66: стр.220 гр.3 | X66: =#REF! ->  | Y66: ≠ | Z66: =M55-M66 -> 2792 | AA66: стр.152 гр.7 - стр.162 гр.7 | AB66: =3720+1485-152+1 -> 5054
C67: расходы от прочих операций, не включаемые в чистую прибыль (убыток) | D67: 163 | E67: 0 | G67: 0 | I67: 0 | K67: 0 | M67: 0 | O67: 0 | Q67: 0 | S67: =SUM(E67:R67) -> 0 | W67: стр.230 гр.3 | X67: =#REF! ->  | Y67: ≠ | Z67: =S56-S67 -> 0 | AA67: стр.153 гр.10 - стр.163 гр.10
C68: уменьшение номинальной стоимости акций | D68: 164 | E68: 0 | G68: 0 | I68: 0 | K68: 0 | M68: 0 | O68: 0 | Q68: 0 | S68: 0
C69: выкуп акций (долей в уставном капитале) | D69: 165 | E69: 0 | G69: 0 | I69: 0 | K69: 0 | M69: 0 | O69: 0 | Q69: 0 | S69: 0 | W69: =IF(SUM(AD71:AD83)=SUM(E77:R77)," ","ВНИМАНИЕ: проверять правильность выполнения условий необходимо только после полного заполнения формы.") -> 
C70: дивиденды и другие доходы от участия в уставном капитале организации | D70: 166 | E70: 0 | G70: 0 | I70: 0 | K70: 0 | M70: 0 | O70: 152 | Q70: 0 | S70: 152 | W70: =IF(SUM(AD71:AD83)=SUM(E77:R77)," ","Если ячейки окрасились в серый цвет, это означает, что данные Отчета об изменении капитала не равны данным Бухгалтерского баланса.") -> 
C71: реорганизация | D71: 167 | E71: 0 | G71: 0 | I71: 0 | K71: 0 | M71: 0 | O71: 0 | Q71: 0 | S71: 0 | W71: =IF(E77=AD71," ",IF(E77<AD71,CONCATENATE("Данные стр.140-190 гр.3 превышают на ",AC71," данные в стр.200 гр.3. Необходимо проверить заполнение строк стр.140-190."),CONCATENATE("Данные стр.140-190 гр.3 меньше на ",AC71," данных в стр.140 гр.3. Необходимо проверить заполнение строк стр.140-190."))) ->  | AC71: =ABS(E77-AD71) -> 0 | AD71: =E51+E52-E63+E74+E75+E76 -> 408 | AE71: 3
D72: 168 | E72: 0 | G72: 0 | I72: 0 | K72: 0 | M72: - | O72: - | Q72: - | S72: 0
D73: 169 | E73: 0 | G73: 0 | I73: 0 | K73: 0 | M73: 0 | O73: 0 | Q73: 0 | S73: 0 | W73: =IF(G77=AD73," ",IF(G77<AD73,CONCATENATE("Данные стр.140-190 гр.4 превышают на ",AC73," данные в стр.200 гр.4. Необходимо проверить заполнение строк стр.140-190."),CONCATENATE("Данные стр.140-190 гр.4 меньше на ",AC73," данных в стр.140 гр.4. Необходимо проверить заполнение строк стр.140-190."))) ->  | AC73: =ABS(G77-AD73) ->  | AD73: =G51+G52-G63+G74+G75+G76 ->  | AE73: 4
C74: Изменение уставного капитала | D74: 170 | E74: 0 | G74: 0 | I74: 0 | K74: 0 | M74: 0 | O74: 0 | Q74: 0 | S74: 0
C75: Изменение резервного капитала | D75: 180 | E75: 0 | G75: 0 | I75: 0 | Q75: 0 | S75: 0 | W75: =IF(I77=AD75," ",IF(I77<AD75,CONCATENATE("Данные стр.140-190 гр.5 превышают на ",AC75," данные в стр.200 гр.5. Необходимо проверить заполнение строк стр.140-190."),CONCATENATE("Данные стр.140-190 гр.5 меньше на ",AC75," данных в стр.140 гр.5. Необходимо проверить заполнение строк стр.140-190."))) ->  | AC75: =ABS(I77-AD75) ->  | AD75: =I51+I52-I63+I74+I75+I76 ->  | AE75: 5
C76: Изменение добавочного капитала | D76: 190 | E76: 0 | G76: 0 | I76: 0 | K76: 0 | M76: -1 | O76: 1 | Q76: 0 | S76: 0
C77: Остаток на 31.12.2022 г. | D77: 200 | E77: 408 | G77: - | I77: - | K77: 25 | M77: 4968 | O77: 4161 | Q77: - | S77: 9562 | W77: =IF(K77=AD77," ",IF(K77<AD77,CONCATENATE("Данные стр.140-190 гр.6 превышают на ",AC77," данные в стр.200 гр.6. Необходимо проверить заполнение строк стр.140-190."),CONCATENATE("Данные стр.140-190 гр.6 меньше на ",AC77," данных в стр.140 гр.6. Необходимо проверить заполнение строк стр.140-190."))) ->  | AC77: =ABS(K77-AD77) -> 0 | AD77: =K51+K52-K63+K74+K75+K76 -> 25 | AE77: 6
C79: Руководитель | K79: В.С. Амбарцумян | W79: =IF(M77=AD79," ",IF(M77<AD79,CONCATENATE("Данные стр.140-190 гр.7 превышают на ",AC79," данные в стр.200 гр.7. Необходимо проверить заполнение строк стр.140-190."),CONCATENATE("Данные стр.140-190 гр.7 меньше на ",AC79," данных в стр.140 гр.7. Необходимо проверить заполнение строк стр.140-190."))) ->  | AC79: =ABS(M77-AD79) -> 0 | AD79: =M51+M52-M63+M74+M75+M76 -> 4968 | AE79: 7
F80: (подпись) | K80: (инициалы, фамилия)
C81: Главный бухгалтер | K81: М.А. Краснова | W81: =IF(O77=AD81," ",IF(O77<AD81,CONCATENATE("Данные стр.140-190 гр.8 превышают на ",AC81," данные в стр.200 гр.8. Необходимо проверить заполнение строк стр.140-190."),CONCATENATE("Данные стр.140-190 гр.8 меньше на ",AC81," данных в стр.140 гр.8. Необходимо проверить заполнение строк стр.140-190."))) ->  | AC81: =ABS(O77-AD81) -> 0 | AD81: =O51+O52-O63+O74+O75+O76 -> 4161 | AE81: 8
F82: (подпись) | K82: (инициалы, фамилия)
C83: 22 февраля 2023 г. | W83: =IF(Q77=AD83," ",IF(Q77<AD83,CONCATENATE("Данные стр.140-190 гр.9 превышают на ",AC83," данные в стр.200 гр.9. Необходимо проверить заполнение строк стр.140-190."),CONCATENATE("Данные стр.140-190 гр.9 меньше на ",AC83," данных в стр.140 гр.9. Необходимо проверить заполнение строк стр.140-190."))) ->  | AC83: =ABS(Q77-AD83) ->  | AD83: =Q51+Q52-Q63+Q74+Q75+Q76 -> 0 | AE83: 9

Sheet Приложение (hidden)
A1: =ROW() -> 1 | B1: А. Сельское, лесное и рыбное хозяйство, 011-017 | C1: 1.5 | D1: 0.2
A2: =ROW() -> 2 | B2: А. Сельское, лесное и рыбное хозяйство, 021-024 | C2: 1.5 | D2: 0.2
A3: =ROW() -> 3 | B3: А. Сельское, лесное и рыбное хозяйство, 031-032 | C3: 1.5 | D3: 0.2
A4: =ROW() -> 4 | B4: В. Горнодобывающая промышленность, 051-052, 061-062, 071-072, 081, 089, 091 | C4: 1.7 | D4: 0.3
A5: =ROW() -> 5 | B5: В. Горнодобывающая промышленность, 099 | C5: 1.2 | D5: 0.15
A6: =ROW() -> 6 | B6: С. Обрабатывающая промышленность, 101, 104-109 | C6: 1.3 | D6: 0.2
A7: =ROW() -> 7 | B7: С. Обрабатывающая промышленность, 102-103 | C7: 1.7 | D7: 0.3
A8: =ROW() -> 8 | B8: С. Обрабатывающая промышленность, 110, 120 | C8: 1.7 | D8: 0.3
A9: =ROW() -> 9 | B9: С. Обрабатывающая промышленность, 131-133, 139, 141-143, 151-152 | C9: 1.3 | D9: 0.2
A10: =ROW() -> 10 | B10: С. Обрабатывающая промышленность, 161-162, 171-172, 181-182 | C10: 1.3 | D10: 0.2
A11: =ROW() -> 11 | B11: С. Обрабатывающая промышленность, 191 | C11: 1.4 | D11: 0.2
A12: =ROW() -> 12 | B12: С. Обрабатывающая промышленность, 192 | C12: 1.7 | D12: 0.3
A13: =ROW() -> 13 | B13: С. Обрабатывающая промышленность, подкласс 19201 | C13: 1.4 | D13: 0.2
A14: =ROW() -> 14 | B14: С. Обрабатывающая промышленность, 201-206, 211-212 | C14: 1.4 | D14: 0.2
A15: =ROW() -> 15 | B15: С. Обрабатывающая промышленность, 221-222 | C15: 1.3 | D15: 0.2
A16: =ROW() -> 16 | B16: С. Обрабатывающая промышленность, 231-237, 239 | C16: 1.2 | D16: 0.15
A17: =ROW() -> 17 | B17: С. Обрабатывающая промышленность, 241, 242, 244, 245 | C17: 1.3 | D17: 0.2
A18: =ROW() -> 18 | B18: С. Обрабатывающая промышленность, 243 | C18: 1.2 | D18: 0.15
A19: =ROW() -> 19 | B19: С. Обрабатывающая промышленность, 251 | C19: 1.2 | D19: 0.15
A20: =ROW() -> 20 | B20: С. Обрабатывающая промышленность, 252-257, 259 | C20: 1.3 | D20: 0.2
A21: =ROW() -> 21 | B21: С. Обрабатывающая промышленность, 261-267 | C21: 1.3 | D21: 0.2
A22: =ROW() -> 22 | B22: С. Обрабатывающая промышленность, 268 | C22: 1.4 | D22: 0.2
A23: =ROW() -> 23 | B23: С. Обрабатывающая промышленность, 271-275, 279 | C23: 1.3 | D23: 0.2
A24: =ROW() -> 24 | B24: С. Обрабатывающая промышленность, 281-282, 284, 289 | C24: 1.3 | D24: 0.2
A25: =ROW() -> 25 | B25: С. Обрабатывающая промышленность, 283 | C25: 1.6 | D25: 0.1
A26: =ROW() -> 26 | B26: С. Обрабатывающая промышленность, 291-293, 301-304, 309 | C26: 1.3 | D26: 0.2
A27: =ROW() -> 27 | B27: С. Обрабатывающая промышленность, 310, 321-322, 324, 329 | C27: 1.7 | D27: 0.3
A28: =ROW() -> 28 | B28: С. Обрабатывающая промышленность, 323, 325, 331-332 | C28: 1.3 | D28: 0.2
A29: =ROW() -> 29 | B29: D. Снабжение электроэнергией, газом, паром, горячей водой и кондиционированным воздухом, 351 | C29: 1.1 | D29: 0.25
A30: =ROW() -> 30 | B30: D. Снабжение электроэнергией, газом, паром, горячей водой и кондиционированным воздухом, 352 | C30: 1.01 | D30: 0.3
A31: =ROW() -> 31 | B31: D. Снабжение электроэнергией, газом, паром, горячей водой и кондиционированным воздухом, 353 | C31: 1.1 | D31: 0.1
A32: =ROW() -> 32 | B32: 5. Е. Водоснабжение; сбор, обработка и удаление отходов, деятельность по ликвидации загрязнений, 360-370, 381-382, 390 | C32: 1.1 | D32: 0.1
A33: =ROW() -> 33 | B33: 5. Е. Водоснабжение; сбор, обработка и удаление отходов, деятельность по ликвидации загрязнений, 383 | C33: 1.7 | D33: 0.3
A34: =ROW() -> 34 | B34: 6. F. Строительство, 411 | C34: 1.1 | D34: 0.1
A35: =ROW() -> 35 | B35: 6. F. Строительство, 412, 421-422, 429, 431-433, 439 | C35: 1.2 | D35: 0.15
A36: =ROW() -> 36 | B36: 7. G. Оптовая и розничная торговля; ремонт автомобилей и мотоциклов, 451-454, 461-467, 469, 471-479 | C36: 1 | D36: 0.1
A37: =ROW() -> 37 | B37: 8. H. Транспортная деятельность, складирование, почтовая и курьерская деятельность, 491-495, 501-504, 511-512, 521-522 | C37: 1.15 | D37: 0.15
A38: =ROW() -> 38 | B38: 8. H. Транспортная деятельность, складирование, почтовая и курьерская деятельность, 531-532 | C38: 1 | D38: 0.05
A39: =ROW() -> 39 | B39: 9. I. Услуги по временному проживанию и питанию, 551-553, 559 | C39: 1.1 | D39: 0.1
A40: =ROW() -> 40 | B40: 9. I. Услуги по временному проживанию и питанию, 561-563 | C40: 1 | D40: 0.1
A41: =ROW() -> 41 | B41: 10. J. Информация и связь, 581 | C41: 1.1 | D41: 0.15
A42: =ROW() -> 42 | B42: 10. J. Информация и связь, 582 | C42: 1.3 | D42: 0.2
A43: =ROW() -> 43 | B43: 10. J. Информация и связь, 591 | C43: 1.1 | D43: 0.1
A44: =ROW() -> 44 | B44: 10. J. Информация и связь, 592 | C44: 1.1 | D44: 0.15
A45: =ROW() -> 45 | B45: 10. J. Информация и связь, 601-602, 611-613, 619 | C45: 1.1 | D45: 0.15
A46: =ROW() -> 46 | B46: 10. J. Информация и связь, 620, 631 | C46: 1.3 | D46: 0.2
A47: =ROW() -> 47 | B47: 10. J. Информация и связь, 639 | C47: 1.1 | D47: 0.1
A48: =ROW() -> 48 | B48: K. Финансовая и страховая деятельность, 641-643 | C48: 1.5 | D48: 0.2
A49: =ROW() -> 49 | B49: K. Финансовая и страховая деятельность, 649 | C49: 1.1 | D49: 0.1
A50: =ROW() -> 50 | B50: K. Финансовая и страховая деятельность, 651-653, 661-663 | C50: 1.5 | D50: 0.2
A51: =ROW() -> 51 | B51: L. Операции с недвижимым имуществом, 681-682 | C51: 1.1 | D51: 0.1
A52: =ROW() -> 52 | B52: L. Операции с недвижимым имуществом, 683 | C52: 1 | D52: 0.05
A53: =ROW() -> 53 | B53: М. Профессиональная, научная и техническая деятельность, 691-692, 701-702, 711 | C53: 1 | D53: 0.05
A54: =ROW() -> 54 | B54: М. Профессиональная, научная и техническая деятельность, 712 | C54: 1.2 | D54: 0.15
A55: =ROW() -> 55 | B55: М. Профессиональная, научная и техническая деятельность, 721-722 | C55: 1.15 | D55: 0.2
A56: =ROW() -> 56 | B56: М. Профессиональная, научная и техническая деятельность, 731 | C56: 1.2 | D56: 0.15
A57: =ROW() -> 57 | B57: М. Профессиональная, научная и техническая деятельность, 732 | C57: 1 | D57: 0.05
A58: =ROW() -> 58 | B58: М. Профессиональная, научная и техническая деятельность, 741, 743, 749 | C58: 1.2 | D58: 0.15
A59: =ROW() -> 59 | B59: М. Профессиональная, научная и техническая деятельность, 742 | C59: 1.1 | D59: 0.1
A60: =ROW() -> 60 | B60: М. Профессиональная, научная и техническая деятельность, 750 | C60: 1.5 | D60: 0.2
A61: =ROW() -> 61 | B61: 14. N. Деятельность в сфере административных и вспомогательных услуг, 771-773 | C61: 1.1 | D61: 0.1
A62: =ROW() -> 62 | B62: 14. N. Деятельность в сфере административных и вспомогательных услуг, 774 | C62: 1 | D62: 0.05
A63: =ROW() -> 63 | B63: 14. N. Деятельность в сфере административных и вспомогательных услуг, 781-783 | C63: 1.2 | D63: 0.15
A64: =ROW() -> 64 | B64: 14. N. Деятельность в сфере административных и вспомогательных услуг, 791, 799 | C64: 1.15 | D64: 0.15
A65: =ROW() -> 65 | B65: 14. N. Деятельность в сфере административных и вспомогательных услуг, 801-803 | C65: 1.2 | D65: 0.15
A66: =ROW() -> 66 | B66: 14. N. Деятельность в сфере административных и вспомогательных услуг, 811-812 | C66: 1.1 | D66: 0.1
A67: =ROW() -> 67 | B67: 14. N. Деятельность в сфере административных и вспомогательных услуг, 813 | C67: 1.5 | D67: 0.2
A68: =ROW() -> 68 | B68: 14. N. Деятельность в сфере административных и вспомогательных услуг, 821-823, 829 | C68: 1.2 | D68: 0.15
A69: =ROW() -> 69 | B69: 15. Q. Здравоохранение и социальные услуги, 861 | C69: 1.1 | D69: 0.1
A70: =ROW() -> 70 | B70: 16. R. Творчество, спорт, развлечения и отдых, 931 | C70: 1.1 | D70: 0.1
A71: =ROW() -> 71 | B71: 17. S. Предоставление прочих видов услуг, 941-942, 949 | C71: 1.1 | D71: 0.1
A72: =ROW() -> 72 | B72: 17. S. Предоставление прочих видов услуг, 951 | C72: 1.3 | D72: 0.2
A73: =ROW() -> 73 | B73: 17. S. Предоставление прочих видов услуг, 952 | C73: 1 | D73: 0.1
A74: =ROW() -> 74 | B74: 17. S. Предоставление прочих видов услуг, 960 | C74: 1.1 | D74: 0.1
A75: =ROW() -> 75 | B75: 18. Прочие виды экономической деятельности | C75: 1.5 | D75: 0.2
